Cogmind - Beta 17 @@@ ROGUE MODE // 2026.07.15 @ 01:07:47 Player: kite Result: Self-destructed Performance ------------- Evolutions (6) 3000 Regions Visited (21) 4200 Robots Destroyed (232) 1160 Value Destroyed (13329) 13329 Prototype IDs (32) 640 Alien Tech Used (0) 0 Bonus (7380) 7380 TOTAL SCORE: 29709 Bonus ------- High Alert Combat Kills 2624 Follower Combat Kills 523 Entered Garrisons 800 Aligned with FarCom 300 Acquired ECA 300 Met Warlord at Base 500 MAIN.C Attacked Warlord 500 Warlord Defense Kills 2092 Friendly Fire -259 Cogmind --------- Core Integrity 589/1150 Matter 21/300 Energy 100/100 System Corruption 2% Temperature Critical (587) Movement Core (1350) Ox26 Location -4/Warlord Parts ------- > --- POWER (2) -------- (None) > --- PROPULSION (6) --- Centrium Wheel > --- UTILITY (7) ------ Huge Storage Unit Improved Launcher Guidance Computer > --- WEAPON (4) ------- (None) > --- INVENTORY (25) --- Matter Compressor (0) Advanced Actuator Array Advanced Transmission Jammer EM Shield Improved Point Defense System Improved Point Defense System Improved Point Defense System Makeshift System Shield Ghost Barrier Wardrone Bay Improved Plasma Cutter Longsword +1 Peak State ------------ > --- POWER ------------ Vortex Chain Reactor > --- PROPULSION ------- Heavy Treads Improved Heavy Treads Spiked Heavy Treads > --- UTILITY ---------- Huge Storage Unit Improved Launcher Guidance Computer Layered Heavy Armor Plating Advanced Remote Shield Advanced Drone Bay > --- WEAPON ----------- Tiamat Missile Launcher Greatsword Power Sword > --- INVENTORY -------- Wheel Centrium Wheel Matter Compressor Advanced Actuator Array Advanced Transmission Jammer EM Shield Improved Point Defense System Improved Point Defense System Improved Point Defense System Makeshift System Shield Ghost Barrier Wardrone Bay Improved Plasma Cutter Greatsword Greatsword Longsword +1 [Rating: 140] Favorites ----------- Power Light Angular Momentum Engine Engine Light Angular Momentum Engine Power Core Light Nuclear Core Reactor Antimatter Reactor Propulsion Light Treads Treads Light Treads Leg Armored Leg Wheel Compact Wheel Utility Huge Storage Unit Device Force Field Storage Huge Storage Unit Processor Advanced Melee Analysis Suite Hackware Hacking Suite Protection Hardened Medium Armor Plating Weapon Powered Hammer Energy Gun Improved EM Shotgun Energy Cannon Heavy Plasma Cannon Ballistic Gun Light Assault Rifle Launcher Tiamat Missile Launcher Special Weapon Remote Datajack Impact Weapon Powered Hammer Slashing Weapon Longsword +1 Piercing Weapon Lance Build | -11 -10 -10 -10 -9 -8 -8 -8 -8 -8 -8 -6 -6 -6 -6 -5 -5 -5 -4 -4 -4 -4 ------- Run | Yrd Mat Min Exi Min Mat Gar Sto Gar Rec Scr Fac Gar Fac Gar Fac Upp Upp Fac Upp Upp War Slots Evolved 12 | . . . . . 4 . . . . . 4 . . . 2 . . 2 . . . Power 1 | . . . . . . . . . . . 1 . . . . . . . . . . Propulsion 4 | . . . . . 3 . . . . . 1 . . . . . . . . . . Utility 5 | . . . . . 1 . . . . . 2 . . . . . . 2 . . . Weapon 2 | . . . . . . . . . . . . . . . 2 . . . . . . Parts Attached 168 | 8 8 . . 2 10 14 2 11 9 2 9 13 12 13 25 5 . 3 8 3 11 Power 20 | 1 1 . . 1 . 1 . 1 . 1 1 2 2 1 5 . . . 2 . 1 Engine 11 | 1 1 . . 1 . 1 . 1 . . 1 2 2 . 1 . . . . . . Core 5 | . . . . . . . . . . 1 . . . 1 3 . . . . . . Reactor 4 | . . . . . . . . . . . . . . . 1 . . . 2 . 1 Propulsion 56 | 4 2 . . . 3 6 . 5 6 . 4 5 2 7 7 2 . . 1 . 2 Treads 27 | 2 . . . . . 6 . 5 1 . . 5 1 2 3 1 . . 1 . . Leg 12 | . 2 . . . 1 . . . . . 3 . 1 5 . . . . . . . Wheel 17 | 2 . . . . 2 . . . 5 . 1 . . . 4 1 . . . . 2 Hover . | . . . . . . . . . . . . . . . . . . . . . . Flight . | . . . . . . . . . . . . . . . . . . . . . . Utility 59 | 1 2 . . 1 4 3 2 4 3 . 2 4 7 2 10 3 . 2 3 2 4 Device 23 | . 1 . . 1 1 . . . . . 2 3 3 2 1 2 . 1 2 2 2 Storage 7 | 1 1 . . . 1 1 . . 1 . . . . . 1 . . . . . 1 Processor 9 | . . . . . . . . . 1 . . . 2 . 2 1 . 1 1 . 1 Hackware 8 | . . . . . 2 . . 1 1 . . . 1 . 3 . . . . . . Protection 12 | . . . . . . 2 2 3 . . . 1 1 . 3 . . . . . . Artifact . | . . . . . . . . . . . . . . . . . . . . . . Weapon 33 | 2 3 . . . 3 4 . 1 . 1 2 2 1 3 3 . . 1 2 1 4 Energy Gun 3 | . 2 . . . 1 . . . . . . . . . . . . . . . . Energy Cannon 2 | . . . . . . 1 . . . . . . 1 . . . . . . . . Ballistic Gun 4 | 2 1 . . . . . . . . . . . . 1 . . . . . . . Ballistic Cannon . | . . . . . . . . . . . . . . . . . . . . . . Launcher 7 | . . . . . 1 . . 1 . . . 1 . 1 2 . . . 1 . . Special Weapon 4 | . . . . . . . . . . 1 1 . . . 1 . . . . . 1 Impact Weapon 5 | . . . . . . 2 . . . . 1 1 . 1 . . . . . . . Slashing Weapon 7 | . . . . . 1 1 . . . . . . . . . . . 1 1 . 3 Piercing Weapon 1 | . . . . . . . . . . . . . . . . . . . . 1 . Special Melee Weapon . | . . . . . . . . . . . . . . . . . . . . . . Unidentified Prototypes 9 | . 1 . . . . . . . . . . . . . 3 . . . . . 5 Corrupted Parts 4 | . . . . . . . . 2 . . . . . 2 . . . . . . . System Corruption 32 | . . . . . . . . 18 . . . . . 14 . . . . . . . Parts Lost 55 | . 2 . . . 1 5 1 11 . . . 6 4 6 4 1 . 1 . . 13 Power 10 | . 1 . . . . 1 . 1 . . . 2 1 2 1 . . . . . 1 Propulsion 25 | . . . . . . 2 . 7 . . . 2 3 3 2 1 . 1 . . 4 Utility 11 | . . . . . . 1 1 2 . . . 2 . 1 1 . . . . . 3 Weapon 9 | . 1 . . . 1 1 . 1 . . . . . . . . . . . . 5 Highest Loss Streak 12 | . 2 . . . 1 2 1 4 . . . 3 1 3 3 1 . 1 . . 12 To Critical Strikes 1 | . . . . . . . . . . . . 1 . . . . . . . . . Average Backups 19 | 1 9 15 14 15 14 13 12 12 18 24 24 22 23 23 22 22 23 21 20 21 19 Power . | . . . . . . . 1 1 1 1 . . . . . 1 1 1 . 1 . Propulsion 3 | . 1 1 1 1 . 2 2 3 1 8 7 5 4 3 3 2 3 2 1 2 1 Utility 8 | . 2 5 5 7 8 6 4 4 11 8 10 8 9 10 11 10 11 9 9 10 9 Weapon 4 | . 6 9 8 6 5 3 4 3 3 3 3 5 5 6 4 5 5 5 5 5 4 Tool/Special . | . . . . . . . . . . . . . . . . . . . . . . Unused Backups 67 | . 3 . 2 2 4 5 . . 3 5 6 1 4 4 9 . . 5 2 . 12 Power 3 | . . . . . . . . . . . . . . 1 . . . . 1 . 1 Propulsion 19 | . . . . . . 5 . . 2 2 1 1 2 2 4 . . . . . . Utility 31 | . . . . . 1 . . . 1 3 5 . 2 1 3 . . 4 1 . 10 Weapon 12 | . 3 . 2 2 3 . . . . . . . . . 1 . . 1 . . . Tool/Special 2 | . . . . . . . . . . . . . . . 1 . . . . . 1 Average Slot Usage (%) 89 | . 93 100 100 100 82 97 97 88 96 100 98 91 92 88 93 89 88 86 73 73 67 Engine 6 | . 14 14 14 14 9 9 9 8 9 3 5 8 12 7 . . . . . . . Core 1 | . . . . . . . . . . 5 6 2 . 2 8 5 5 5 . . . Reactor 1 | . . . . . . . . . . . . . . . . 5 5 5 9 10 8 Treads 17 | . 20 . . . . 25 45 43 38 . . 18 24 15 4 19 23 10 14 15 14 Leg 8 | . 7 28 28 28 27 10 . . . . 7 13 7 15 17 . . . . . . Wheel 5 | . . . . . 1 6 . . 5 45 31 1 . . 9 4 . 14 5 . . Device 7 | . 5 14 14 14 12 2 . . . . 6 12 10 12 7 5 5 5 5 12 9 Storage 7 | . 17 14 14 14 9 11 15 9 9 9 6 6 6 6 5 5 5 5 5 5 5 Processor 5 | . . . . . . . . . 1 9 6 6 6 6 5 10 11 9 10 12 8 Hackware 2 | . . . . . 5 1 . . 7 9 6 . 5 . 2 5 5 4 . . . Protection 4 | . . . . . . 11 8 9 9 . 5 6 2 6 4 . . 5 4 . 3 Energy Gun 2 | . 8 28 28 28 16 1 . . . . . . . . . . . . . . . Impact Weapon 9 | . . . . . . 11 9 14 14 18 9 11 12 11 16 17 17 10 4 4 . Slashing Weapon 3 | . . . . . 1 5 8 3 1 . 1 1 . . 4 5 5 7 9 5 6 Peak Build Rating 140 | 6 17 17 18 21 34 30 23 24 30 27 56 77 74 82 82 96 96 107 121 124 140 Average Rating 59 | 4 9 17 17 20 27 24 22 19 25 26 45 69 66 70 73 92 96 98 112 121 125 On Entrance 50 | . 6 17 17 18 21 30 23 21 22 25 27 56 69 74 71 82 96 96 97 119 124 Avg Prop Armor Cover (%) 10 | . . . . . 21 5 . . 36 . 16 8 5 9 16 21 . 12 9 . . Naked Turns . | . . . . . . . . . . . . . . . . . . . . . . Heaviest Build 172 | 10 30 30 30 31 32 83 84 69 93 93 115 127 127 126 123 109 106 132 150 162 172 Greatest Support 220 | 40 40 26 26 26 39 100 100 100 103 80 96 147 145 150 107 201 201 103 220 220 220 Greatest Overweight (x) 12 | . 2 1 1 1 2 1 . 1 5 1 6 2 1 2 7 3 . 2 3 . 12 Average Overweight (x) . | . . 1 1 1 . . . . . 1 1 . . . 1 . . 1 . . . Largest Inventory Capacity 25 | 8 15 15 15 15 15 20 20 20 25 25 25 25 25 25 25 25 25 25 25 25 25 Average Capacity 22 | 6 13 15 15 15 15 16 20 20 20 25 25 25 25 25 25 25 25 25 25 25 25 Most Carried 25 | 3 15 15 15 15 15 20 20 19 25 25 25 25 25 25 25 25 25 25 25 25 25 Average Carried 21 | 1 9 15 14 14 14 15 17 15 19 24 24 23 24 23 24 24 25 24 24 24 24 Final Capacity 25 | 8 15 15 15 15 15 20 20 20 25 25 25 25 25 25 25 25 25 25 25 25 25 Final Carried 25 | 3 15 15 15 15 15 18 19 15 25 25 25 25 22 25 25 25 25 23 25 25 19 Class Distribution -------------------- 34% | Scavenger-Gladiator 18% | Mutant 17% | Scavenger-Mutant 15% | Gladiator 8% | Derelict-Gladiator 3% | Commander-Mutant Dominant Class ---------------- Mutant | -10/Materials Mutant | -10/Mines Mutant | -10/Exiles Mutant | -9/Mines Mutant | -8/Materials Scavenger-Mutant | -8/Garrison Scavenger-Mutant | -8/Storage Scavenger-Mutant | -8/Garrison Commander-Mutant | -8/Recycling Scavenger-Gladiator | -8/Scraptown Scavenger-Gladiator | -6/Factory Scavenger-Gladiator | -6/Garrison Scavenger-Gladiator | -6/Factory Gladiator | -6/Garrison Scavenger-Gladiator | -5/Factory Gladiator | -5/Upper Caves Gladiator | -5/Upper Caves Scavenger-Gladiator | -4/Factory Gladiator | -4/Upper Caves Derelict-Gladiator | -4/Upper Caves Derelict-Gladiator | -4/Warlord Resources | -11 -10 -10 -10 -9 -8 -8 -8 -8 -8 -8 -6 -6 -6 -6 -5 -5 -5 -4 -4 -4 -4 ----------- Run | Yrd Mat Min Exi Min Mat Gar Sto Gar Rec Scr Fac Gar Fac Gar Fac Upp Upp Fac Upp Upp War Matter Collected 4998 | 163 205 52 200 165 170 203 67 312 290 30 139 452 193 481 571 104 . 382 234 292 293 Remotely . | . . . . . . . . . . . . . . . . . . . . . . Salvage Created 11888 | . 693 . . 251 253 716 433 751 1888 . 36 2157 406 1646 1203 302 . 725 53 54 321 Parts 423 | . 42 . . 12 11 36 20 26 46 . 4 62 27 64 34 8 . 15 . 10 6 Haulers Intercepted 3 | . 1 . . . . . . . . . . . . . 2 . . . . . . Recyclers Shooed 2 | . . . . . . . . . 1 . 1 . . . . . . . . . . Parts Field Recycled . | . . . . . . . . . . . . . . . . . . . . . . Retrieved Matter . | . . . . . . . . . . . . . . . . . . . . . . Parts Self-Destructed 33 | . . . . . . . . . . . . . . . . 14 . . . 19 . Prevented 3 | . . . . . . . . . . . . . . . . 3 . . . . . Parts Restored . | . . . . . . . . . . . . . . . . . . . . . . Kills | -11 -10 -10 -10 -9 -8 -8 -8 -8 -8 -8 -6 -6 -6 -6 -5 -5 -5 -4 -4 -4 -4 ------- Run | Yrd Mat Min Exi Min Mat Gar Sto Gar Rec Scr Fac Gar Fac Gar Fac Upp Upp Fac Upp Upp War Combat Hostiles Destroyed 175 | . 13 . . 6 5 12 9 20 4 . . 28 7 33 9 3 . 7 . 4 15 Melee 73 | . . . . . . 3 4 10 2 . . 15 5 18 6 2 . 5 . . 3 Guns 22 | . 12 . . 6 2 2 . . . . . . . . . . . . . . . AOE 29 | . 1 . . . 3 . 3 4 . . . . . 2 . . . . . 4 12 Classes Destroyed 20 | . 4 . . 2 3 1 . 1 1 . . 2 1 1 . 1 . . . . 3 Worker 3 | . . . . . 1 . . . 1 . 1 . . . . . . . . . . Builder 6 | . . . . . 2 . . . . . 1 . 2 . . . . 1 . . . Tunneler 2 | . . . . . . . . . . . . . 1 . . . . 1 . . . Hauler 4 | . 1 . . . . . . . 1 . . . . . 2 . . . . . . Recycler 26 | . . . . 1 . . 2 . 18 . . . . . 4 . . 1 . . . Mechanic 2 | . . . . . . . . . . . . . . . . . . . . . 2 Operator 3 | . 1 . . . . . . . . . . . 1 . 1 . . . . . . Watcher 5 | . 3 . . . . . . . . . . . 1 . . . . 1 . . . Swarmer 32 | . . . . 3 . . 3 3 . . . 6 2 11 . . . . . 4 . Grunt 84 | . 13 . . 3 3 . 4 12 1 . . 15 2 12 7 3 . 3 . . 6 Brawler 5 | . . . . . . . . . . . . 1 . 1 . . . 1 . . 2 Duelist 3 | . . . . . . . . . 1 . . . . . . . . . . . 2 Protector 2 | . . . . . . . . . . . . . . . . . . . . . 2 Sentry 25 | . . . . . 2 10 2 2 3 . . 2 1 2 . . . 1 . . . Specialist 2 | . . . . . . . . . . . . . . 2 . . . . . . . Hunter 13 | . . . . . . 2 . 1 1 . . 3 1 5 . . . . . . . Programmer 13 | . . . . . . . . 2 1 . . . 1 3 2 . . 2 . . 2 Behemoth 1 | . . . . . . . . . . . . 1 . . . . . . . . . Executioner 1 | . . . . . . . . . . . . . . . . . . . . . 1 Packrat 1 | . . . . . . . . . . . . . . . . . . . 1 . . Samaritan 2 | . . . . . . . . . . . . . . . . 2 . . . . . Best Kill Streak 14 | . 4 . . 3 5 3 4 4 5 . 1 3 2 6 3 2 . 2 . 4 14 Combat Bots Only 12 | . 3 . . 3 4 3 3 4 3 . . 3 2 6 2 2 . 2 . 4 12 Max Kills in Single Turn 4 | . 1 . . 1 1 1 4 1 1 . 1 1 1 2 1 1 . 1 1 3 2 Gunslinging . | . . . . . . . . . . . . . . . . . . . . . . Exploded 3 | . 1 . . . 1 . 3 1 . . . . . 2 . . . . . 3 2 Melee 1 | . . . . . . 1 1 1 1 . . 1 1 1 1 1 . 1 . . 1 Uniques/NPCs Destroyed . | . . . . . . . . . . . . . . . . . . . . . . Combat | -11 -10 -10 -10 -9 -8 -8 -8 -8 -8 -8 -6 -6 -6 -6 -5 -5 -5 -4 -4 -4 -4 -------- Run | Yrd Mat Min Exi Min Mat Gar Sto Gar Rec Scr Fac Gar Fac Gar Fac Upp Upp Fac Upp Upp War Hostile Shots Fired 1052 | . 59 . . 20 29 92 30 111 5 . . 169 59 184 27 3 . 47 . 5 212 Missed 289 | . 13 . . 9 19 34 11 30 . . . 38 14 30 9 . . 8 . 2 72 Hits 763 | . 46 . . 11 10 58 19 81 5 . . 131 45 154 18 3 . 39 . 3 140 Melee 1 | . . . . . . . . . . . . . . . . . . 1 . . . Projectile 762 | . 46 . . 11 10 58 19 81 5 . . 131 45 154 18 3 . 38 . 3 140 AOE 2 | . . . . . . . . . . . . . . . 1 . . . . . 1 Critical Strikes 21 | . 1 . . . . 1 3 2 . . . 3 2 2 . . . . . . 7 Part Disruptions 1 | . . . . . . . . . . . . . . 1 . . . . . . . Damage Taken 12698 | . 608 . . 138 153 992 274 1320 55 . . 1562 811 1637 684 106 . 509 . 23 3826 Core 1344 | . 113 . . 37 43 155 47 138 . . . 69 33 102 34 12 . 9 . . 552 Absorbed by Shields 1896 | . . . . . . . . . 15 . . 753 79 804 . . . 221 . 24 . Ignored by Resistances 106 | . . . . . . . . . . . . . . 16 59 . . 31 . . . Regen/Repaired (Parts) 139 | . . . . . . . . . . . . . . . . . . . . . 139 Core Remaining (%) 68 | 100 . . . 40 . . . . . 30 . . . 76 . . 95 . . . . Volleys Fired 158 | . 69 . . 7 16 14 2 11 . . 1 3 3 5 3 . . . 4 2 18 Largest 2 | . 2 . . 2 2 2 1 1 . . 1 1 1 1 1 . . . 1 1 1 Hottest 108 | . 90 . . 90 90 108 33 33 . . 5 43 90 43 7 . . . 46 46 46 Shots Fired 258 | . 137 . . 14 27 26 2 11 . . 1 3 4 6 3 . . . 4 2 18 Gun 195 | . 137 . . 14 22 22 . . . . . . . . . . . . . . . Cannon 7 | . . . . . . 3 . . . . . . 4 . . . . . . . . Launcher 52 | . . . . . 5 1 2 11 . . . 3 . 6 . . . . 4 2 18 Special 4 | . . . . . . . . . . . 1 . . . 3 . . . . . . Kinetic 115 | . 115 . . . . . . . . . . . . . . . . . . . . Thermal 4 | . . . . . . . . . . . . . 4 . . . . . . . . Explosive 52 | . . . . . 5 1 2 11 . . . 3 . 6 . . . . 4 2 18 Electromagnetic 83 | . 22 . . 14 22 25 . . . . . . . . . . . . . . . Robot Hit Streak 20 | . 20 . . 5 12 8 1 3 . . 4 5 6 . 3 . . . . 4 17 Robot Miss Streak 3 | . 3 . . 3 2 2 1 1 . . . . . 1 . . . . . . . Penetration Max . | . . . . . . . . . . . . . . . . . . . . . . Secondary Targets 1 | . . . . 1 . . . . . . . . . . . . . . . . . Max Gunslinging Chain 1 | . . . . 1 . . . . . . . . . . . . . . . . . Shots Hit Robots 609 | . 100 . . 9 27 49 19 49 44 . 6 97 27 76 42 10 . 29 1 1 23 Core Hits 281 | . 42 . . 13 21 11 8 13 15 . 1 25 8 23 13 3 . 9 . 4 72 Critical Kills 13 | . . . . . . . . 1 1 . . 2 2 5 . . . 2 . . . Critical Parts Destroyed 44 | . . . . . . 5 1 12 . . . 9 3 6 4 1 . 3 . . . Critical Strikes 77 | . . . . . . 5 1 14 1 . . 18 5 13 8 2 . 7 . . 3 Smash 57 | . . . . . . 5 1 13 1 . . 11 5 11 4 1 . 5 . . . Sever 20 | . . . . . . . . 1 . . . 7 . 2 4 1 . 2 . . 3 Melee Attacks 677 | . . . . . 7 70 28 73 47 . 10 147 51 107 58 10 . 52 2 . 15 Impact 431 | . . . . . . 54 14 56 23 . 3 103 46 90 21 4 . 16 1 . . Slashing 246 | . . . . . 7 16 14 17 24 . 7 44 5 17 37 6 . 36 1 . 15 Piercing . | . . . . . . . . . . . . . . . . . . . . . . Sneak Attacks 83 | . . . . . 3 1 1 . 34 . 5 1 4 12 12 3 . 6 1 . . Combat Hostiles 6 | . . . . . . 1 . . . . . 1 . 1 3 . . . . . . Follow-up Attacks 70 | . . . . . . 6 5 13 1 . . 11 6 13 9 2 . 4 . . . Damage Inflicted 33236 | . 975 . . 220 1279 1622 1002 2168 3432 . 462 5363 1507 4313 2466 610 . 1553 122 281 5861 Guns 1727 | . 953 . . 178 368 228 . . . . . . . . . . . . . . . Cannons 43 | . . . . . . 43 . . . . . . . . . . . . . . . Explosions 7496 | . 22 . . 23 614 . 205 334 . . . 70 152 366 . . . . . 281 5429 Melee 23942 | . . . . . 297 1351 797 1834 3423 . 462 5293 1355 3947 2466 610 . 1553 122 . 432 Ramming 28 | . . . . 19 . . . . 9 . . . . . . . . . . . . Kinetic 670 | . 670 . . . . . . . . . . . . . . . . . . . . Thermal 362 | . 22 . . 23 165 . . . . . . . 152 . . . . . . . . Explosive 7134 | . . . . . 449 . 205 334 . . . 70 . 366 . . . . . 281 5429 Electromagnetic 1100 | . 283 . . 178 368 271 . . . . . . . . . . . . . . . Impact 12260 | . . . . . . 1068 368 1387 1403 . 64 2655 1110 2747 673 164 . 499 122 . . Slashing 11682 | . . . . . 297 283 429 447 2020 . 398 2638 245 1200 1793 446 . 1054 . . 432 Piercing . | . . . . . . . . . . . . . . . . . . . . . . Highest Corruption 19 | . . . . . . 1 1 19 19 . . . 3 18 2 2 2 2 2 2 2 Average Corruption 4 | . . . . . . 1 1 1 19 . . . 3 4 1 2 2 1 2 2 1 Corruption Purged . | . . . . . . . . . . . . . . . . . . . . . . Corruption Blocked . | . . . . . . . . . . . . . . . . . . . . . . Effects 184 | . . . . . . 7 1 12 62 . . . 17 39 3 12 1 . 15 14 1 Message Errors 45 | . . . . . . 2 1 2 17 . . . 3 9 . 3 . . 3 5 . Matter Fused 45 | . . . . . . 2 . 2 18 . . . 4 8 1 4 . . 3 3 . Heat Flow Errors 28 | . . . . . . . . 1 8 . . . 3 6 . 3 1 . 4 2 . Energy Discharges 21 | . . . . . . 1 . 5 4 . . . 2 4 2 1 . . 1 1 . Parts Rejected 1 | . . . . . . . . . . . . . . 1 . . . . . . . Parts Fused 2 | . . . . . . . . 1 . . . . 1 . . . . . . . . Data Loss (minor) 26 | . . . . . . 2 . 1 10 . . . 2 5 . 1 . . 2 2 1 Data Loss (major) 10 | . . . . . . . . . 4 . . . 1 3 . . . . 1 1 . Misfires 2 | . . . . . . . . . . . . . 1 1 . . . . . . . Alerts 4 | . . . . . . . . . 1 . . . . 2 . . . . 1 . . Overload Shots . | . . . . . . . . . . . . . . . . . . . . . . Overflow Damage 5316 | . . . . . 63 281 174 628 1044 . 202 704 344 663 452 140 . 432 112 . 77 Projectiles 64 | . . . . . . . . . 42 . . . . 22 . . . . . . . Explosions 144 | . . . . . 17 . . . . . . . 50 . . . . . . . 77 Melee 5108 | . . . . . 46 281 174 628 1002 . 202 704 294 641 452 140 . 432 112 . . Knockbacks 42 | . . . . 1 . . 4 2 13 . 1 11 2 5 1 . . 2 . . . Impact 37 | . . . . 1 . . 4 2 10 . 1 9 2 5 1 . . 2 . . . Kinetic . | . . . . . . . . . . . . . . . . . . . . . . Secondary 5 | . . . . . . . . . 3 . . 2 . . . . . . . . . Self-Inflicted Damage 321 | . . . . 16 . . . . . . . . 191 114 . . . . . . . Shots 5 | . . . . 1 . . . . . . . . 2 2 . . . . . . . Rammed 1 | . . . . . . . . . 1 . . . . . . . . . . . . Targets Rammed 7 | . . . . 6 . . . . 1 . . . . . . . . . . . . Kicked 6 | . . . . 6 . . . . . . . . . . . . . . . . . Crushed . | . . . . . . . . . . . . . . . . . . . . . . Highest Temperature 698 | . 27 . . 19 108 341 10 208 256 . . 8 265 259 . 218 87 . 262 216 698 Average Temperature 85 | . 9 . . 8 39 131 10 77 106 . . 4 85 105 . 94 48 . 109 107 79 Received Heat Transfer 3632 | . 369 . . 57 63 288 207 432 14 . . 379 90 308 84 47 . 107 . . 1187 Effects 5 | . . . . . . 1 . . 1 . . . . . . . . . . . 3 Interference 2 | . . . . . . . . . 1 . . . . . . . . . . . 1 Short Circuit 1 | . . . . . . . . . . . . . . . . . . . . . 1 Damage (minor) 1 | . . . . . . 1 . . . . . . . . . . . . . . . Damage (major) 1 | . . . . . . . . . . . . . . . . . . . . . 1 Siege Activations 1 | . . . . . . . . . . . . . . . . . . . . . 1 Total Turns 15 | . . . . . . . . . . . . . . . . . . . . . 15 Longest Duration 15 | . . . . . . . . . . . . . . . . . . . . . 15 Martial Activations . | . . . . . . . . . . . . . . . . . . . . . . Shielding Activations . | . . . . . . . . . . . . . . . . . . . . . . Robots Disrupted . | . . . . . . . . . . . . . . . . . . . . . . Combat Hostiles . | . . . . . . . . . . . . . . . . . . . . . . Robots Corrupted 57 | . . . . . . 7 2 6 7 . . 13 3 13 3 1 . 2 . . . Combat Hostiles 50 | . . . . . . 7 2 6 2 . . 13 2 12 3 1 . 2 . . . Parts Fried 69 | . 1 . . . 2 6 2 5 7 . . 12 6 17 6 2 . 3 . . . Impact Corruptions 133 | . . . . . . 10 4 20 21 . . 26 10 23 11 1 . 4 3 . . Robots Melted . | . . . . . . . . . . . . . . . . . . . . . . Combat Hostiles . | . . . . . . . . . . . . . . . . . . . . . . Parts Melted 1 | . . . . . . 1 . . . . . . . . . . . . . . . Heat Transferred 350 | . 50 . . 50 150 . . . . . . . 100 . . . . . . . . Parts Sabotaged . | . . . . . . . . . . . . . . . . . . . . . . Parts Stolen . | . . . . . . . . . . . . . . . . . . . . . . Parts Stripped . | . . . . . . . . . . . . . . . . . . . . . . Power Chain Reactions 4 | . 1 . . 1 2 . . . . . . . . . . . . . . . . Alert | -11 -10 -10 -10 -9 -8 -8 -8 -8 -8 -8 -6 -6 -6 -6 -5 -5 -5 -4 -4 -4 -4 ------- Run | Yrd Mat Min Exi Min Mat Gar Sto Gar Rec Scr Fac Gar Fac Gar Fac Upp Upp Fac Upp Upp War Maximum Alert Level 5 | . . . . . . 4 2 4 3 . . 5 3 5 4 . . . . . . Low Security (%) 29 | 100 100 100 . 100 100 13 . . . . 100 30 . . . . . 100 . . . Level 1 2 | . . . . . . 12 . . . . . 8 . . . . . . . . . Level 2 13 | . . . . . . 20 100 23 57 . . 8 . 6 . . . . . . . Level 3 32 | . . . . . . 42 . 37 42 . . 20 100 16 88 . . . . . . Level 4 14 | . . . . . . 10 . 38 . . . 22 . 35 11 . . . . . . Level 5 6 | . . . . . . . . . . . . 9 . 41 . . . . . . . High Security . | . . . . . . . . . . . . . . . . . . . . . . Max Security . | . . . . . . . . . . . . . . . . . . . . . . Peak Influence 2136 | . 75 19 . 137 144 1164 695 1456 777 . 7 1809 954 2136 1125 . . 74 . . . Initial 1121 | . . 19 . . . 26 567 448 655 . . 2 949 563 1121 . . 72 . . . Average 708 | . 24 4 . 33 59 696 613 951 695 . . 743 821 1488 951 . . 43 . . . Influence Increases 9129 | . 440 . . 162 254 1248 253 1158 521 . 18 1927 358 1633 328 145 . 299 . 90 295 Destroy 0b10 Robot/C 3840 | . 260 . . 120 100 480 180 460 140 . . 560 140 680 180 60 . 140 . 80 260 Destroy 0b10 Robot/NC 325 | . 25 . . 5 15 10 10 5 115 . 10 30 25 . 35 . . 20 . . 20 Destroy Leader 476 | . 68 . . 20 30 30 40 30 . . . 60 52 60 34 10 . 32 . 10 . Allied During Kill 134 | . . . . . . 64 . 9 56 . . . . 5 . . . . . . . Trap Triggered on 0b10 40 | . . . . . . . . 40 . . . . . . . . . . . . . Successful Hack 147 | . 7 . . . . . . 35 30 . 3 14 35 . 10 . . 13 . . . Select Force Hacks 240 | . 60 . . . . . . . 180 . . . . . . . . . . . . Disable Machine 225 | . . . . 15 60 30 . 15 . . . 15 45 15 30 . . . . . . Anti-Garrison Action 2450 | . . . . . . 600 . 450 . . . 850 . 550 . . . . . . . Destroy Structure 562 | . 5 . . 2 34 34 23 69 . . 5 143 61 128 24 . . 34 . . . Lose Combat Pursuer 690 | . 15 . . . 15 . . 45 . . . 255 . 195 15 75 . 60 . . 15 Influence Decreases 9030 | . 389 51 . 162 213 125 727 392 1319 658 15 121 1362 302 1553 874 66 379 36 90 196 Entered New Map 4895 | . . 32 . . . 15 597 242 801 658 . 1 860 242 1015 338 36 44 14 . . Time Decay 3396 | . 369 19 . 162 204 . 120 . 498 . 15 . 452 . 498 526 30 325 22 90 66 Lost Part 549 | . 20 . . . 9 50 10 110 . . . 60 40 60 40 10 . 10 . . 130 Lost Ally 190 | . . . . . . 60 . 40 20 . . 60 10 . . . . . . . . Squads Dispatched 24 | . 4 . . . 1 . 3 . . . 1 . 7 . 6 . . 2 . . . Investigation 4 | . 2 . . . . . . . . . . . 1 . 1 . . . . . . Extermination 6 | . . . . . . . . . . . 1 . 2 . 2 . . 1 . . . Reinforcement 9 | . 2 . . . . . 1 . . . . . 2 . 3 . . 1 . . . Assault 2 | . . . . . . . . . . . . . 2 . . . . . . . . Garrison 3 | . . . . . 1 . 2 . . . . . . . . . . . . . . Intercept . | . . . . . . . . . . . . . . . . . . . . . . Searches Triggered . | . . . . . . . . . . . . . . . . . . . . . . Construction Impeded . | . . . . . . . . . . . . . . . . . . . . . . Haulers Reinforced 3 | . . . . . . . . . . . . . 1 . 2 . . . . . . Active Scanning Responses . | . . . . . . . . . . . . . . . . . . . . . . Cargo Convoy Interrupts . | . . . . . . . . . . . . . . . . . . . . . . Stealth | -11 -10 -10 -10 -9 -8 -8 -8 -8 -8 -8 -6 -6 -6 -6 -5 -5 -5 -4 -4 -4 -4 --------- Run | Yrd Mat Min Exi Min Mat Gar Sto Gar Rec Scr Fac Gar Fac Gar Fac Upp Upp Fac Upp Upp War Distress Signals 11 | . 2 . . . 1 . 2 . 1 . . . 1 . 1 . . 2 . . 1 Communications Jammed . | . . . . . . . . . . . . . . . . . . . . . . Distress Signals . | . . . . . . . . . . . . . . . . . . . . . . Times Spotted 280 | . 26 . . 6 10 18 10 32 4 . 3 45 13 43 12 6 . 17 . 7 28 Peak Tracking Total 13 | . 5 . . 3 5 4 3 5 2 . 1 3 2 7 5 4 . 6 . 4 13 Tactical Retreats 36 | . 1 . . . 1 . . 2 . . . 15 . 10 1 2 . 3 . . 1 Traps | -11 -10 -10 -10 -9 -8 -8 -8 -8 -8 -8 -6 -6 -6 -6 -5 -5 -5 -4 -4 -4 -4 ------- Run | Yrd Mat Min Exi Min Mat Gar Sto Gar Rec Scr Fac Gar Fac Gar Fac Upp Upp Fac Upp Upp War Traps Triggered 23 | . . . . . . 4 . 2 . . . 13 1 2 1 . . . . . . Indirectly . | . . . . . . . . . . . . . . . . . . . . . . Trap Hack Attempts . | . . . . . . . . . . . . . . . . . . . . . . Triggered . | . . . . . . . . . . . . . . . . . . . . . . Disarmed . | . . . . . . . . . . . . . . . . . . . . . . Reprogrammed . | . . . . . . . . . . . . . . . . . . . . . . Reused 4 | . . . . . . . . 4 . . . . . . . . . . . . . Traps Extracted . | . . . . . . . . . . . . . . . . . . . . . . Installed 5 | . . . . . . . . 5 . . . . . . . . . . . . . Triggered 4 | . . . . . . . . 4 . . . . . . . . . . . . . Most Traps Carried 6 | . . . . . . 6 6 6 1 1 . . . . . . . . . . . Machines | -11 -10 -10 -10 -9 -8 -8 -8 -8 -8 -8 -6 -6 -6 -6 -5 -5 -5 -4 -4 -4 -4 ---------- Run | Yrd Mat Min Exi Min Mat Gar Sto Gar Rec Scr Fac Gar Fac Gar Fac Upp Upp Fac Upp Upp War Machines Disabled 41 | . . . . 1 4 10 . 7 . . . 5 3 8 2 . . . . . 1 Max in Single Turn 3 | . . . . 1 2 1 . 2 . . . 1 3 2 1 . . . . . 1 Garrison Relay 20 | . . . . . . 8 . 5 . . . 4 . 3 . . . . . . . Phase Generator 2 | . . . . . . . . 1 . . . . . 1 . . . . . . . Machines Repaired . | . . . . . . . . . . . . . . . . . . . . . . Machines Dismantled 1 | . . . . . . . . . . . . . . . . . . . . . 1 Machines Sabotaged . | . . . . . . . . . . . . . . . . . . . . . . Overloaded Fab Kills . | . . . . . . . . . . . . . . . . . . . . . . Hacking | -11 -10 -10 -10 -9 -8 -8 -8 -8 -8 -8 -6 -6 -6 -6 -5 -5 -5 -4 -4 -4 -4 --------- Run | Yrd Mat Min Exi Min Mat Gar Sto Gar Rec Scr Fac Gar Fac Gar Fac Upp Upp Fac Upp Upp War Machines Accessed 56 | . 4 . 2 . 3 2 1 4 12 2 1 4 5 2 5 1 . 2 1 1 4 Terminals 27 | . 1 . . . 2 2 . 4 6 . . 4 3 2 1 . . 2 . . . Fabricators 2 | . . . . . . . . . . . . . . . 2 . . . . . . Repair Stations 1 | . 1 . . . . . . . . . . . . . . . . . . . . Recycling Units 9 | . 2 . . . . . . . 6 . . . . . 1 . . . . . . Scanalyzers 1 | . . . . . . . . . . . . . . . 1 . . . . . . Garrison Access 5 | . . . . . 1 . 1 . . . 1 . 2 . . . . . . . . Total Hacks 128 | . 5 . 5 . 5 6 1 8 20 11 2 7 16 5 11 7 . 5 1 6 7 Successful 77 | . 3 . 5 . 3 . 1 3 15 11 1 2 5 . 4 7 . 3 1 6 7 Failed 51 | . 2 . . . 2 6 . 5 5 . 1 5 11 5 7 . . 2 . . . Catastrophic 12 | . . . . . 1 . . 1 . . . 3 4 1 1 . . 1 . . . Database Lockouts . | . . . . . . . . . . . . . . . . . . . . . . Manual 43 | . 3 . 1 . 4 . . 2 20 . . . 9 . 2 . . 2 . . . Terminals 64 | . 1 . . . 4 6 . 8 14 . . 7 12 5 2 . . 5 . . . Fabricators 4 | . . . . . . . . . . . . . . . 4 . . . . . . Repair Stations 2 | . 2 . . . . . . . . . . . . . . . . . . . . Recycling Units 10 | . 2 . . . . . . . 6 . . . . . 2 . . . . . . Scanalyzers 3 | . . . . . . . . . . . . . . . 3 . . . . . . Garrison Access 8 | . . . . . 1 . 1 . . . 2 . 4 . . . . . . . . Terminal Hacks 49 | . 1 . 5 . . . . 3 2 11 . 2 2 . . 7 . 2 1 6 7 Record 34 | . . . 4 . . . . . . 11 . . . . . 7 . . . 6 6 Part Schematic 2 | . 1 . . . . . . . 1 . . . . . . . . . . . . Open Door 3 | . . . . . . . . 1 . . . . . . . . . . 1 . 1 Open DSF 1 | . . . . . . . . . . . . . 1 . . . . . . . . Branch Access Points 1 | . . . . . . . . . . . . . . . . . . 1 . . . Emergency Access Points 2 | . . . . . . . . 1 . . . 1 . . . . . . . . . Machine Index 1 | . . . . . . . . . . . . . 1 . . . . . . . . Terminal Index 1 | . . . . . . . . . 1 . . . . . . . . . . . . Hauler Manifests 1 | . . . . . . . . . . . . . . . . . . 1 . . . Patrol Navigation 2 | . . . . . . . . 1 . . . 1 . . . . . . . . . Proto ID Catalog 1 | . . . 1 . . . . . . . . . . . . . . . . . . Fabricator Hacks 2 | . . . . . . . . . . . . . . . 2 . . . . . . Load Schematic 1 | . . . . . . . . . . . . . . . 1 . . . . . . Build 1 | . . . . . . . . . . . . . . . 1 . . . . . . Repair Station Hacks . | . . . . . . . . . . . . . . . . . . . . . . Recycling Unit Hacks . | . . . . . . . . . . . . . . . . . . . . . . Scanalyzer 2 | . . . . . . . . . . . . . . . 2 . . . . . . Insert Component 1 | . . . . . . . . . . . . . . . 1 . . . . . . Analyze 1 | . . . . . . . . . . . . . . . 1 . . . . . . Garrison Access Hacks 4 | . . . . . 1 . 1 . . . 1 . 1 . . . . . . . . Unlock Access 4 | . . . . . 1 . 1 . . . 1 . 1 . . . . . . . . Unauthorized Hacks 20 | . 2 . . . 2 . . . 13 . . . 2 . . . . 1 . . . Terminals 12 | . . . . . 2 . . . 7 . . . 2 . . . . 1 . . . Assimilate 1 | . . . . . . . . . . . . . 1 . . . . . . . . Botnet 5 | . . . . . 2 . . . 1 . . . 1 . . . . 1 . . . Skim 6 | . . . . . . . . . 6 . . . . . . . . . . . . Fabricators . | . . . . . . . . . . . . . . . . . . . . . . Repair Stations . | . . . . . . . . . . . . . . . . . . . . . . Recycling Units 8 | . 2 . . . . . . . 6 . . . . . . . . . . . . Tunnel 8 | . 2 . . . . . . . 6 . . . . . . . . . . . . Scanalyzers . | . . . . . . . . . . . . . . . . . . . . . . Garrison Access . | . . . . . . . . . . . . . . . . . . . . . . Data Cores Recovered . | . . . . . . . . . . . . . . . . . . . . . . Used . | . . . . . . . . . . . . . . . . . . . . . . Hacking Detections 28 | . 1 . . . 2 2 . 3 5 . 1 3 3 2 4 . . 2 . . . Full Trace Events 9 | . . . . . . 2 . 2 . . . 1 1 2 1 . . . . . . Feedback Events 1 | . . . . . . 1 . . . . . . . . . . . . . . . Corruption 1 | . . . . . . 1 . . . . . . . . . . . . . . . Feedback Blocked . | . . . . . . . . . . . . . . . . . . . . . . Robot Schematics Acquired . | . . . . . . . . . . . . . . . . . . . . . . Robots Built . | . . . . . . . . . . . . . . . . . . . . . . Authchips . | . . . . . . . . . . . . . . . . . . . . . . Time . | . . . . . . . . . . . . . . . . . . . . . . Total Robot Build Rating . | . . . . . . . . . . . . . . . . . . . . . . Part Schematics Acquired 3 | . 1 . . . . . . . 1 . . . . . 1 . . . . . . Parts Built 1 | . . . . . . . . . . . . . . . 1 . . . . . . Authchips . | . . . . . . . . . . . . . . . . . . . . . . Time 25 | . . . . . . . . . . . . . . . 25 . . . . . . Total Part Build Rating 1 | . . . . . . . . . . . . . . . 1 . . . . . . Part Studies Acquired . | . . . . . . . . . . . . . . . . . . . . . . Parts Repaired . | . . . . . . . . . . . . . . . . . . . . . . Time . | . . . . . . . . . . . . . . . . . . . . . . Parts Recycled . | . . . . . . . . . . . . . . . . . . . . . . Recycled Matter . | . . . . . . . . . . . . . . . . . . . . . . Retrieved Matter . | . . . . . . . . . . . . . . . . . . . . . . Retrieved Components . | . . . . . . . . . . . . . . . . . . . . . . Parts Scanalyzed 1 | . . . . . . . . . . . . . . . 1 . . . . . . Part Schematics Acquired 1 | . . . . . . . . . . . . . . . 1 . . . . . . Parts Damaged . | . . . . . . . . . . . . . . . . . . . . . . Bothacking | -11 -10 -10 -10 -9 -8 -8 -8 -8 -8 -8 -6 -6 -6 -6 -5 -5 -5 -4 -4 -4 -4 ------------ Run | Yrd Mat Min Exi Min Mat Gar Sto Gar Rec Scr Fac Gar Fac Gar Fac Upp Upp Fac Upp Upp War Used RIF Installer . | . . . . . . . . . . . . . . . . . . . . . . Robots Hacked 3 | . . . . . . . . . . . 1 . . . 2 . . . . . . Non-combat 3 | . . . . . . . . . . . 1 . . . 2 . . . . . . Combat . | . . . . . . . . . . . . . . . . . . . . . . Robot Hacks Applied 3 | . . . . . . . . . . . 1 . . . 2 . . . . . . find_chute 2 | . . . . . . . . . . . 1 . . . 1 . . . . . . find_recycling 1 | . . . . . . . . . . . . . . . 1 . . . . . . Relay Couplers Released 81 | . . . . . . 31 . 21 . . . 15 . 11 3 . . . . . . Machine Destruction 78 | . . . . . . 31 . 21 . . . 15 . 11 . . . . . . . Programmers 3 | . . . . . . . . . . . . . . . 3 . . . . . . Fabnet Peak Effective % . | . . . . . . . . . . . . . . . . . . . . . . Robots Rewired 25 | . . . . . . 3 . 2 14 . . 3 . 3 . . . . . . . Allies Hacked . | . . . . . . . . . . . . . . . . . . . . . . Hacks Repelled . | . . . . . . . . . . . . . . . . . . . . . . Allies | -11 -10 -10 -10 -9 -8 -8 -8 -8 -8 -8 -6 -6 -6 -6 -5 -5 -5 -4 -4 -4 -4 -------- Run | Yrd Mat Min Exi Min Mat Gar Sto Gar Rec Scr Fac Gar Fac Gar Fac Upp Upp Fac Upp Upp War Total Allies 26 | . . . . . . 3 . 2 14 . . 3 1 3 . . . . . . . Largest Group 13 | . . . . . . 3 . 2 13 . . 3 1 3 . . . . . . . Highest-Rated Group 241 | . . . . . . 87 . 64 241 . . 36 26 118 . . . . . . . Highest-Rated Ally 41 | . . . . . . 31 . 39 27 . . 12 26 41 . . . . . . . Initial Warlord ECA Mod 36 | . . . . . . . 12 12 22 22 20 20 28 28 36 36 36 35 35 35 35 Total Orders 69 | . . . . . . . . . 1 . . . . 2 . . . . 16 46 4 STAY 5 | . . . . . . . . . 1 . . . . 1 . . . . . 3 . ROAM 8 | . . . . . . . . . . . . . . . . . . . . 8 . FOLLOW 1 | . . . . . . . . . . . . . . 1 . . . . . . . EXPLORE 30 | . . . . . . . . . . . . . . . . . . . 8 19 3 RETURN 25 | . . . . . . . . . . . . . . . . . . . 8 16 1 Ally Attacks 78 | . . . . . . 44 . 12 7 . . 13 . 2 . . . . . . . Total Damage 1466 | . . . . . . 875 . 310 123 . . 76 . 82 . . . . . . . Kills 19 | . . . . . . 12 . 3 3 . . . . 1 . . . . . . . Allies Corrupted 1 | . . . . . . . . . . . . . 1 . . . . . . . . Allies Melted 1 | . . . . . . . . . . . . . . . . . . . . . 1 Intel | -11 -10 -10 -10 -9 -8 -8 -8 -8 -8 -8 -6 -6 -6 -6 -5 -5 -5 -4 -4 -4 -4 ------- Run | Yrd Mat Min Exi Min Mat Gar Sto Gar Rec Scr Fac Gar Fac Gar Fac Upp Upp Fac Upp Upp War Active Infowar (turns) 3816 | . . . . . . . . . . . 194 19 1052 . 1045 1426 77 2 . . 1 Optics 1 | . . . . . . . . . . . . . . . . . . . . . 1 Sensors 1505 | . . . . . . . . . . . . . . . . 1426 77 2 . . . Terrain 91 | . . . . . . . . . . . . . 91 . . . . . . . . Structural 2219 | . . . . . . . . . . . 194 19 961 . 1045 . . . . . . Seismic 442 | . . . . . . . . . . . . . 442 . . . . . . . . Robot Analysis Total . | . . . . . . . . . . . . . . . . . . . . . . Derelict Logs Recovered 4 | . . 1 . 1 . . . . . . . . . . . 2 . . . . . Drone Launches 37 | . . . . . . . . . . . . . . . . . . . 8 27 2 Drone Recoveries 37 | . . . . . . . . . . . . . . . . . . . 8 27 2 Exploration | -11 -10 -10 -10 -9 -8 -8 -8 -8 -8 -8 -6 -6 -6 -6 -5 -5 -5 -4 -4 -4 -4 ------------- Run | Yrd Mat Min Exi Min Mat Gar Sto Gar Rec Scr Fac Gar Fac Gar Fac Upp Upp Fac Upp Upp War Turns Passed 22333 | 81 1115 126 521 663 557 1788 251 1622 1321 1046 392 2642 1138 2056 1331 1463 77 721 1138 1223 1061 Spaces Moved 10599 | 45 484 67 239 264 339 887 75 815 703 894 248 1080 512 741 631 816 49 375 460 334 541 Core 1 | 1 . . . . . . . . . . . . . . . . . . . . . Treads 6429 | 37 347 . . . . 626 75 815 573 . . 979 512 560 . 606 49 1 378 334 537 Legs 1642 | . 137 67 239 264 320 195 . . . . 4 1 . 181 234 . . . . . . Wheels 2527 | 7 . . . . 19 66 . . 130 894 244 100 . . 397 210 . 374 82 . 4 Hover . | . . . . . . . . . . . . . . . . . . . . . . Flight . | . . . . . . . . . . . . . . . . . . . . . . Fastest Speed 50 | 50 160 190 190 190 95 95 160 160 115 115 115 130 160 120 130 130 160 130 130 160 160 Average Speed 161 | 147 168 190 190 190 118 161 160 160 152 115 126 190 160 209 152 165 160 130 155 160 160 Slowest Speed 540 | 160 260 190 190 190 120 240 160 240 175 115 540 260 240 260 205 240 160 240 160 160 260 Overloaded Moves . | . . . . . . . . . . . . . . . . . . . . . . Propulsion Burnouts . | . . . . . . . . . . . . . . . . . . . . . . Robots Hopped . | . . . . . . . . . . . . . . . . . . . . . . Potential Cave-ins 1 | . . . . . . 1 . . . . . . . . . . . . . . . Cave-ins Triggered . | . . . . . . . . . . . . . . . . . . . . . . Exploration Rate (%) 51 | 3 89 20 60 47 32 80 14 98 94 57 6 92 17 58 14 71 10 8 76 98 95 Regions Visited 21 Branch Regions 11 Pre-discovered Areas 14 | . 2 1 1 1 . . . . 8 . . . . . . 1 . . . . . Known Exits Taken 10 | . . . . . 1 . 1 . 1 1 1 . 1 . . 1 1 1 . 1 . Unknown Exits Taken 7 | 1 1 1 1 1 . . . . . . . . . . 1 . . . 1 . . Scrap Searched 12 | . . 1 . 1 . . . . . 3 . . . . . 2 . . 2 3 . Spaces Dug 79 | . . . . . 3 5 2 2 . . 5 6 22 4 12 . . 17 . . 1 Terrain Destroyed 707 | . 5 . . 2 31 11 21 122 . . 5 57 69 196 12 . . 17 63 41 55 Melee 77 | . . . . . 3 5 2 2 . . 5 6 20 4 12 . . 17 . . 1 Projectile 3 | . . . . . . . . . . . . . 3 . . . . . . . . AOE 627 | . 5 . . 2 28 6 19 120 . . . 51 46 192 . . . . 63 41 54 Terrain Rammed . | . . . . . . . . . . . . . . . . . . . . . . Walls Destroyed . | . . . . . . . . . . . . . . . . . . . . . . Machines Disabled . | . . . . . . . . . . . . . . . . . . . . . . Actions | -11 -10 -10 -10 -9 -8 -8 -8 -8 -8 -8 -6 -6 -6 -6 -5 -5 -5 -4 -4 -4 -4 --------- Run | Yrd Mat Min Exi Min Mat Gar Sto Gar Rec Scr Fac Gar Fac Gar Fac Upp Upp Fac Upp Upp War Total 14864 | 57 672 66 308 408 456 1114 163 1015 898 919 321 1518 750 1125 958 916 48 563 884 1023 682 Wait 2503 | . 83 . 64 124 71 70 54 59 4 3 8 167 150 198 165 77 . 94 383 670 59 Move 10581 | 44 483 66 238 263 338 886 75 814 702 893 248 1079 512 740 630 815 48 374 459 333 541 Hop . | . . . . . . . . . . . . . . . . . . . . . . Pick Up 209 | 3 19 . 3 2 6 19 3 10 14 9 20 11 8 16 27 4 . 16 9 5 5 Fast Attach 84 | 8 6 . . . 3 5 . 3 8 2 4 7 1 5 18 2 . 1 4 2 5 Attach 88 | . 2 . . . 2 7 2 8 3 . 4 7 5 9 12 3 . 8 4 3 9 Detach 22 | . . . . . . . . . 5 . . 3 1 1 4 . . 3 2 . 3 Swap 116 | . . . . 2 8 7 3 7 5 1 6 16 16 19 12 2 . 3 5 1 3 Drop 227 | 2 10 . 3 4 5 16 1 8 11 11 20 13 9 10 43 5 . 20 13 7 16 Fire 158 | . 69 . . 7 16 14 2 11 . . 1 3 3 5 3 . . . 4 2 18 Melee 587 | . . . . . 7 62 23 59 44 . 10 134 45 91 44 8 . 44 1 . 15 Ram . | . . . . . . . . . . . . . . . . . . . . . . Kick 6 | . . . . 6 . . . . . . . . . . . . . . . . . Crush 1 | . . . . . . . . . 1 . . . . . . . . . . . . Escape Stasis 55 | . . . . . . 10 . 1 . . . 42 . 2 . . . . . . . Rewire 213 | . . . . . . 18 . 29 101 . . 36 . 29 . . . . . . . Trap 6 | . . . . . . . . 6 . . . . . . . . . . . . . Miscellaneous 8 | . . . . . . . . . . . . . . . . . . . . . 8 Route ------- -11/Scrapyard -10/Materials (discovered 5 exits: [*Mat x3] / [*Min] / [*Sub]) -10/Mines -10/Exiles -9/Mines -8/Materials -8/Garrison (discovered 4 exits: *Sto x4) -8/Storage -8/Garrison (discovered 3 exits: *Rec x3) -8/Recycling (discovered 2 exits: *Fac / *Scr) -8/Scraptown -6/Factory -6/Garrison (discovered 4 exits: *Fac x3 / *Fac) -6/Factory (discovered 2 exits: *Fac / Gar) -6/Garrison -5/Factory (discovered 2 exits: *Fac / *Upp) -5/Upper Caves -5/Upper Caves -4/Factory (discovered 6 exits: [*Res] / *Upp x2 / Ext x2 / Arm) -4/Upper Caves -4/Upper Caves (discovered 2 exits: [*Res] / *War) -4/Warlord (discovered 1 exit: [*Pro]) History --------- Turn | Location | Event 10 | -11/Scrapyard | Discovered new exit (range 14) 82 | -11/Scrapyard | Entered Materials 311 | -10/Materials | Build established: Mutant 325 | -10/Materials | Discovered new exit (range 10) 506 | -10/Materials | Discovered new exit (range 14) 630 | -10/Materials | Discovered new exit (range 11) 986 | -10/Materials | Discovered new exit (range 12) 1163 | -10/Materials | Discovered new exit (range 7) 1197 | -10/Materials | Entered Mines 1232 | -10/Mines | Found a hidden stash of uninstalled traps 1270 | -10/Mines | Learned location of Zion (-7) 1315 | -10/Mines | Deemed a non-threat by the Exiles lab entrance 1315 | -10/Mines | Discovered new exit (range 5) 1323 | -10/Mines | Entered Exiles 1367 | -10/Exiles | Met 8R-AWN 1403 | -10/Exiles | Met EX-HEX 1455 | -10/Exiles | Met EX-BIN 1477 | -10/Exiles | Aligned with FarCom system 1479 | -10/Exiles | Given EX-Vault access code 1523 | -10/Exiles | Opened EX-Vault 1537 | -10/Exiles | Found Longsword +1 1581 | -10/Exiles | Warned to stay clear of 0b10 Research branches 1603 | -10/Exiles | Exiles lab attacked by MAIN.C 1735 | -10/Exiles | Discovered new exit (range 14) 1844 | -10/Exiles | Left Exiles lab with Longsword +1 1844 | -10/Exiles | Entered Mines 1847 | -9/Mines | Core integrity fell below 50% 2050 | -9/Mines | Assembled infested the area 2410 | -9/Mines | Found a Scrap Suit stashed away for nefarious purposes 2482 | -9/Mines | Discovered new exit (range 13) 2507 | -9/Mines | Entered Materials 2507 | -8/Materials | Evolved 4 slots: Propulsion x3, Utility x1 2929 | -8/Materials | Garrison activated, responded to threat 2976 | -8/Materials | Identified exit to Garrison 3064 | -8/Materials | Entered Garrison 3488 | -8/Garrison | Triggered checkpoint 3502 | -8/Garrison | Garrison Relay disabled 3508 | -8/Garrison | Garrison Relay disabled 3515 | -8/Garrison | Garrison Relay disabled 3529 | -8/Garrison | Garrison Relay disabled 3577 | -8/Garrison | Garrison Relay disabled 3692 | -8/Garrison | Triggered checkpoint 3748 | -8/Garrison | Triggered checkpoint 3794 | -8/Garrison | Triggered checkpoint 3950 | -8/Garrison | Triggered checkpoint 3989 | -8/Garrison | Garrison Relay disabled 3992 | -8/Garrison | Build established: Scavenger-Mutant 4025 | -8/Garrison | Discovered new exit (range 11) 4252 | -8/Garrison | Discovered new exit (range 10) 4280 | -8/Garrison | Garrison Relay disabled 4434 | -8/Garrison | Discovered new exit (range 5) 4588 | -8/Garrison | Discovered new exit (range 10) 4659 | -8/Garrison | Garrison Relay disabled 4852 | -8/Garrison | Entered Storage 4950 | -8/Storage | Garrison activated, responded to threat 5103 | -8/Storage | Identified exit to Garrison 5103 | -8/Storage | Entered Garrison 5238 | -8/Garrison | Garrison Relay disabled 5463 | -8/Garrison | Core integrity fell below 50% 5577 | -8/Garrison | Triggered checkpoint 5703 | -8/Garrison | Garrison Relay disabled 5856 | -8/Garrison | Discovered new exit (range 8) 5947 | -8/Garrison | Triggered checkpoint 5955 | -8/Garrison | Phase Generator disabled 6145 | -8/Garrison | Triggered checkpoint 6434 | -8/Garrison | Discovered new exit (range 9) 6571 | -8/Garrison | Discovered new exit (range 12) 6643 | -8/Garrison | System corruption reached 10% 6665 | -8/Garrison | Garrison Relay disabled 6666 | -8/Garrison | Lost 4 parts (4n) 6697 | -8/Garrison | Garrison Relay disabled 6725 | -8/Garrison | Entered Recycling 7355 | -8/Recycling | Build established: Commander-Mutant 7481 | -8/Recycling | Identified exit to Factory 7526 | -8/Recycling | Learned location of Lower Caves (-6) 7561 | -8/Recycling | Identified exit to Scraptown 7601 | -8/Recycling | Learned Storage emergency access door positions 7664 | -8/Recycling | Learned Storage trap positions 8016 | -8/Recycling | Scanned before Scraplab entrance 8033 | -8/Recycling | Entered Scraplab 8046 | -8/Recycling | Entered Scraptown 8046 | -8/Scraptown | System corruption cleaned by C-Scrubber 8211 | -8/Scraptown | Turned away by UFD registrar 8230 | -8/Scraptown | Visited Cave Peace 8276 | -8/Scraptown | Visited Cyclists 8305 | -8/Scraptown | Visited Observation Area 8341 | -8/Scraptown | Build established: Scavenger-Gladiator 8449 | -8/Scraptown | Heard Great Nut preacher, LISTEN AND RECITE! 8591 | -8/Scraptown | Visited Shadow of the Wyrm 8660 | -8/Scraptown | Discovered exit to Factory (range 11) 8949 | -8/Scraptown | Visited IN-MT5's Study 9025 | -8/Scraptown | Visited The Evicted 9092 | -8/Scraptown | Entered Factory 9092 | -6/Factory | Evolved 4 slots: Power x1, Propulsion x1, Utility x2 9484 | -6/Factory | Identified exit to Garrison 9484 | -6/Factory | Entered Garrison 9546 | -6/Garrison | Triggered checkpoint 9592 | -6/Garrison | Garrison Relay disabled 9860 | -6/Garrison | Triggered checkpoint 9923 | -6/Garrison | Discovered new exit (range 5) 10249 | -6/Garrison | Lost 3 allies 10333 | -6/Garrison | Spotted B-75 Beast 10390 | -6/Garrison | Destroyed B-75 Beast 10504 | -6/Garrison | Triggered checkpoint 10576 | -6/Garrison | Triggered checkpoint 10631 | -6/Garrison | Lost 3 parts (1p1n1u) 10664 | -6/Garrison | Triggered checkpoint 10728 | -6/Garrison | Triggered checkpoint 10737 | -6/Garrison | Garrison Relay disabled 10771 | -6/Garrison | Discovered new exit (range 5) 11186 | -6/Garrison | Triggered checkpoint 11324 | -6/Garrison | Triggered checkpoint 11364 | -6/Garrison | Garrison Relay disabled 11475 | -6/Garrison | Discovered new exit (range 12) 11688 | -6/Garrison | Discovered new exit (range 10) 11708 | -6/Garrison | Triggered checkpoint 11774 | -6/Garrison | Garrison Relay disabled 12126 | -6/Garrison | Entered Factory 12826 | -6/Factory | First assault squad dispatched 13095 | -6/Factory | Discovered new exit (range 8) 13264 | -6/Factory | Identified exit to Garrison 13264 | -6/Factory | Entered Garrison 13306 | -6/Garrison | Phase Generator disabled 13415 | -6/Garrison | Build established: Gladiator 13435 | -6/Garrison | Garrison Relay disabled 13466 | -6/Garrison | Triggered checkpoint 14425 | -6/Garrison | Discovered new exit (range 10) 14438 | -6/Garrison | Triggered checkpoint 14490 | -6/Garrison | Lost 3 parts (2p1n) 14554 | -6/Garrison | Triggered checkpoint 14660 | -6/Garrison | Garrison Relay disabled 14864 | -6/Garrison | Triggered checkpoint 14925 | -6/Garrison | Garrison Relay disabled 15262 | -6/Garrison | Murdered 3 allies 15272 | -6/Garrison | System corruption reached 10% 15320 | -6/Garrison | Entered Factory 15320 | -5/Factory | Evolved 2 slots: Weapon x2 15541 | -5/Factory | Build established: Scavenger-Gladiator 15934 | -5/Factory | Discovered new exit (range 14) 15954 | -5/Factory | Identified exit to Factory 16243 | -5/Factory | Fabricated Huge Storage Unit (x1) 16520 | -5/Factory | Lost 3 parts (1p1n1u) 16522 | -5/Factory | Found Prototype Processor 16522 | -5/Factory | Identified Exp. Targeting Computer 16549 | -5/Factory | Discovered new exit (range 8) 16651 | -5/Factory | Entered Upper Caves 16652 | -5/Upper Caves | Encountered a Warlord checkpoint 16720 | -5/Upper Caves | Met a Warlord Commander 16721 | -5/Upper Caves | Learned location of Warlord (-4) 16722 | -5/Upper Caves | Warlord Commander delivered Encrypted Comm Array 16743 | -5/Upper Caves | Found Encrypted Comm Array 17229 | -5/Upper Caves | Learned Factory stockpile data 17229 | -5/Upper Caves | Learned Research emergency access door positions 17229 | -5/Upper Caves | Learned Factory trap positions 17312 | -5/Upper Caves | Build established: Gladiator 17903 | -5/Upper Caves | Learned Factory machine intel 18037 | -5/Upper Caves | Discovered new exit (range 9) 18112 | -5/Upper Caves | Identified exit to Upper Caves 18114 | -5/Upper Caves | Entered another Upper Caves area 18191 | -5/Upper Caves | Entered Factory 18191 | -4/Factory | Evolved 2 slots: Utility x2 18192 | -4/Factory | Loaded intel: 129 trap records 18194 | -4/Factory | Loaded intel: 277 machine locations 18373 | -4/Factory | Discovered new exit (range 6) 18436 | -4/Factory | Identified exit to Upper Caves 18436 | -4/Factory | Identified exit to Extension 18436 | -4/Factory | Identified exit to Armory 18489 | -4/Factory | Build established: Scavenger-Gladiator 18912 | -4/Factory | Entered Upper Caves 19012 | -4/Upper Caves | Found DCF Scrap (13 items) 19313 | -4/Upper Caves | Build established: Gladiator 20022 | -4/Upper Caves | Discovered new exit (range 16) 20050 | -4/Upper Caves | Entered another Upper Caves area 20051 | -4/Upper Caves | Identified exit to Warlord 20237 | -4/Upper Caves | Discovered new exit (range 24) 20479 | -4/Upper Caves | Learned Research garrison access intel 20479 | -4/Upper Caves | Learned Factory garrison access intel 20479 | -4/Upper Caves | Learned Extension security intel 20479 | -4/Upper Caves | Learned Research stockpile data 20624 | -4/Upper Caves | Build established: Derelict-Gladiator 21041 | -4/Upper Caves | Found DCF Scrap (14 items) 21200 | -4/Upper Caves | Encountered a Warlord checkpoint 21273 | -4/Upper Caves | Entered Warlord 21314 | -4/Warlord | Discovered new exit (range 22) 21337 | -4/Warlord | System corruption cleaned by Quarantine Array 21527 | -4/Warlord | Learned Research emergency access door positions 21528 | -4/Warlord | Learned 4 Access zone layouts 21528 | -4/Warlord | Learned 4 Testing zone layouts 21528 | -4/Warlord | Learned 4 Command zone layouts 21530 | -4/Warlord | Learned Factory terminal intel 21621 | -4/Warlord | Warlord's base attacked by MAIN.C 21755 | -4/Warlord | Met Warlord 21922 | -4/Warlord | Found Prototype Reactor 21922 | -4/Warlord | Identified Vortex Chain Reactor 21939 | -4/Warlord | Found Prototype Device 21939 | -4/Warlord | Identified Exp. Focal Shield 21943 | -4/Warlord | Found Prototype Processor 21943 | -4/Warlord | Identified Spectral Analyzer 21951 | -4/Warlord | Found Prototype Hackware 21971 | -4/Warlord | Warlord forces counterattacked 22025 | -4/Warlord | Found Prototype Device 22078 | -4/Warlord | Spotted Striker 22140 | -4/Warlord | Lost 14 allies 22178 | -4/Warlord | Spotted B-90 Cyclops 22180 | -4/Warlord | Spotted Executioner 22187 | -4/Warlord | Spotted B-86 Titan 22194 | -4/Warlord | Build established: Mutant 22217 | -4/Warlord | Destroyed 12 combat bots 22284 | -4/Warlord | Destroyed Executioner 22296 | -4/Warlord | Warlord base infiltrated, sounded retreat 22334 | -4/Warlord | Self-destructed Last Messages --------------- 22311_ ANNOUNCEMENT: MAIN.C reinforcements approaching through caves, arriving soon. 22321_ ANNOUNCEMENT: Detected 1 Programmer squad, 3 Grunt squads, with prototype support. 22323_ Spk. Heavy Treads destroyed. 22326_ Wheel destroyed. 22326_ Greatsword destroyed. 22326_ Penetrated by Slug. 22327_ Vortex Chain Reactor destroyed. 22328_ Critical hit (Meltdown: +390). 22329_ Greatsword destroyed. 22330_ Critical hit (Meltdown: +410). 22330_ Acquired 5 matter. 22331_ Overheating: Imp. Launcher Guidance Computer damaged (-19). 22333_ Overheating: System interference. 22333_ Imp. Launcher Guidance Computer temporarily disabled. 22334_ Centrium Wheel broken. 22334_ Overheating: Short circuit. Map ----- +----------------------------------------------------+ | # !!! #?# #????# #?????#""#????? | | # #?# #????# #?????#""#????? | | + #?## ###????# #?????#""#????? | | # #?##+######"# #????##""#????? | | # ### #?### #""#????? | | # + #### ## "" ###? | | ######## # ="" | | # + # ["" | | # ##### #"# # "" | | # #???# # # % | | # #???#^^ # # = % %% | | # #?### # # = | | # #?#"#+##+# ; =% | | # #### #;;;;"""##+;; ![ ] | | # ## BBBB ; * ! | | # ## BBBB"" ; % ==""= | | # ## % """ ##"" """ "" ## # | | # ## = "" ; " % " ####""####?? | | # # "" # ## ; ????#""#????? | | # ## * "" #??# #?????#""#????? | | ####+#### % #?## ##????#""#????? | | ;;;;/;##;#### #????#""#????? | | ; #????????????? | | + % """%" #????????????? | | ##+#### # " #????????????? | | #?## ####""""#"##"##@##+## #????????????? | | ""#X #??#??######### ## ##????????????? | | " """## #????? "?????# ## #?????????????? | | " ""## #??""" """???# ## #########?????? | | """""## #??""" """""#?# % ## # #?????? | | """""## ##"""" " "#?# ## + #?????? | | ####### ##"][[ X "#?# ## # #?????? | | ??????# ##"] "??# ## # #?????? | | ??????# ##" ""#?# ## # #?????? | | ??????# ## ""#?# + + #?????? | | ??????# ## ""#?# ## # #?????? | | ??????# ## ""#?# ###### #?????? | | ###???# ## ""#?# #????# #?????? | | #???# + """""????#+#####????# #?????? | | # #???# + """"""????# #????????# #?????? | | # #???##############???## ########?#########?????? | | + #????????????????????# # #???????????????? | | # #?????????????###????## # #???????????????? | | # ############### ####### # #???????????????? | | # + #???????????????? | | ########################### ^ #???????????????? | | ??????????????????????????# #???????????????? | | ??????????????????????????########???????????????? | | ?????????????????????????????????????????????????? | | ?????????????????????????????????????????????????? | +----------------------------------------------------+ Best States ------------- Heat Dissipation 45 Energy Generation 55 Energy Capacity 700 Matter Stores 300 Matter Capacity 300 Sight Range 16 Robot Scan Range 16 Terrain Scan Range 20 Terrain Scan Density 210 Armor Coverage 1200 Resistance: KI 30 Resistance: EM 25 Melee Speed Boost 20 Evasion (%) 63 Melee Accuracy 8 Launcher Accuracy 30 Core Analysis 6 Recoil Reduction 6 Offensive Hacking 10 Defensive Hacking 24 Authchip Count 1 Item Schematics ----------------- Huge Storage Unit | -10/Materials | Hacked Plasma Cutter | -8/Recycling | Hacked Imp. Heavy Treads | -5/Factory | Scanalyzed Robot Schematics ------------------ None Fabricated ------------ Huge Storage Unit | x1 | -5/Factory Repaired ---------- Nothing Studied --------- None Alien Tech Used ----------------- None Achievements -------------- None Challenges ------------ None Game ------ Seed TargetFactoryMatter Manual? 0 Play Time 02:32:21 Cumulative 459.4 hours Start 2026.07.14 @ 22:01:22 End 2026.07.15 @ 01:07:47 Sessions 1 Manual Loads 0 Difficulty Rogue Special Mode None Game No. 424 Rogue 424 Adventurer 0 Explorer 0 Win Type - Total 11 Types 7/0/2/1/0/0/0/0/0/1 Lore% 62 Gallery% 69 Achievement% 65 Wizard Run 0 Options --------- Layout 1 ASCII 0 Keyboard 0 Movement Mouse Keybinds 0 Fullscreen 2 Font 24/Cog Map View 50x35 Zoom Use 13% Tactical HUD 1 Map Filters NONE Filters NONE Steam 1 RUN: 576a2ecf-92ae-48fb-98af-73dd4b58e496